[Event "December 5 Early 2023"]
[Site "https://www.chess.com"]
[Date "2023.12.05"]
[Round "8"]
[White "Alikhanov, Felix"]
[Black "Skliarov, Viktor"]
[Result "1-0"]
[Board "75"]
[TimeControl "180+1"]
[WhiteFideId "4157427"]
[BlackFideId "14106736"]
[WhiteElo "2509"]
[BlackElo "2625"]
[WhiteTeam "RUS"]
[BlackTeam "UKR"]
[WhiteClock "0:01:30"]
[BlackClock "0:00:11"]

1. e4 {[%clk 0:02:58]}  c5 {[%clk 0:03:00]} 2. d4 {[%clk 0:02:58]}  cxd4 {[%clk 0:03:00]} 3. c3 {[%clk 0:02:58]}  d3 {[%clk 0:02:58]} 4. Bxd3 {[%clk 0:02:58]}  g6 {[%clk 0:02:59]} 5. c4 {[%clk 0:02:59]}  Bg7 {[%clk 0:02:59]} 6. Ne2 {[%clk 0:02:59]}  Nc6 {[%clk 0:02:59]} 7. Nbc3 {[%clk 0:03:00]}  Nf6 {[%clk 0:02:59]} 8. O-O {[%clk 0:03:01]}  O-O {[%clk 0:03:00]} 9. f3 {[%clk 0:03:01]}  e6 {[%clk 0:02:59]} 10. f4 {[%clk 0:02:41]}  d5 {[%clk 0:02:38]} 11. cxd5 {[%clk 0:02:41]}  exd5 {[%clk 0:02:37]} 12. e5 {[%clk 0:02:41]}  Qb6+ {[%clk 0:02:22]} 13. Kh1 {[%clk 0:02:41]}  Ng4 {[%clk 0:02:22]} 14. Qe1 {[%clk 0:02:26]}  Nb4 {[%clk 0:02:05]} 15. Bb1 {[%clk 0:02:23]}  d4 {[%clk 0:01:58]} 16. a3 {[%clk 0:02:13]}  dxc3 {[%clk 0:01:40]} 17. axb4 {[%clk 0:02:13]}  c2 {[%clk 0:01:14]} 18. Bxc2 {[%clk 0:02:12]}  Ne3 {[%clk 0:01:14]} 19. Bxe3 {[%clk 0:02:10]}  Qxe3 {[%clk 0:01:15]} 20. Nc3 {[%clk 0:02:10]}  Qd4 {[%clk 0:01:04]} 21. Qe4 {[%clk 0:01:59]}  Qxe4 {[%clk 0:00:56]} 22. Bxe4 {[%clk 0:01:59]}  f6 {[%clk 0:00:53]} 23. Bd5+ {[%clk 0:01:50]}  Kh8 {[%clk 0:00:50]} 24. e6 {[%clk 0:01:50]}  f5 {[%clk 0:00:32]} 25. Nb5 {[%clk 0:01:45]}  Bf6 {[%clk 0:00:23]} 26. Rxa7 {[%clk 0:01:41]}  Rxa7 {[%clk 0:00:21]} 27. Nxa7 {[%clk 0:01:41]}  Be7 {[%clk 0:00:21]} 28. Rc1 {[%clk 0:01:40]}  Bxe6 {[%clk 0:00:19]} 29. Bxe6 {[%clk 0:01:40]}  Bxb4 {[%clk 0:00:20]} 30. Rc8 {[%clk 0:01:38]}  Rxc8 {[%clk 0:00:17]} 31. Bxc8 {[%clk 0:01:37]}  b6 {[%clk 0:00:17]} 32. g3 {[%clk 0:01:34]}  Kg7 {[%clk 0:00:17]} 33. Kg2 {[%clk 0:01:34]}  Kf6 {[%clk 0:00:17]} 34. Nc6 {[%clk 0:01:34]}  Bd2 {[%clk 0:00:17]} 35. Kf3 {[%clk 0:01:33]}  g5 {[%clk 0:00:17]} 36. fxg5+ {[%clk 0:01:31]}  Kxg5 {[%clk 0:00:16]} 37. Nd4 {[%clk 0:01:31]}  f4 {[%clk 0:00:11]} 38. gxf4+ {[%clk 0:01:30]} 1-0

[Event "December 5 Early 2023"]
[Site "https://www.chess.com"]
[Date "2023.12.05"]
[Round "8"]
[White "Grochal, Joey"]
[Black "Martin Fuentes, Alberto"]
[Result "1-0"]
[Board "78"]
[TimeControl "180+1"]
[WhiteFideId "1019945"]
[BlackFideId "2292289"]
[WhiteElo "2498"]
[BlackElo "2615"]
[WhiteTeam "NED"]
[BlackTeam "ESP"]
[WhiteClock "0:00:30"]
[BlackClock "0:00:00"]

1. e4 {[%clk 0:02:53]}  e6 {[%clk 0:02:58]} 2. d4 {[%clk 0:02:53]}  d5 {[%clk 0:02:59]} 3. Nc3 {[%clk 0:02:53]}  Bb4 {[%clk 0:02:59]} 4. e5 {[%clk 0:02:54]}  Ne7 {[%clk 0:02:59]} 5. a3 {[%clk 0:02:53]}  Bxc3+ {[%clk 0:02:59]} 6. bxc3 {[%clk 0:02:53]}  b6 {[%clk 0:03:00]} 7. h4 {[%clk 0:02:53]}  Ba6 {[%clk 0:03:00]} 8. Bxa6 {[%clk 0:02:53]}  Nxa6 {[%clk 0:03:00]} 9. h5 {[%clk 0:02:53]}  h6 {[%clk 0:03:00]} 10. a4 {[%clk 0:02:53]}  Nb8 {[%clk 0:03:00]} 11. Rh4 {[%clk 0:02:48]}  Nbc6 {[%clk 0:02:59]} 12. Rg4 {[%clk 0:02:45]}  Nf5 {[%clk 0:02:59]} 13. Ba3 {[%clk 0:02:24]}  Qd7 {[%clk 0:02:58]} 14. Ne2 {[%clk 0:02:17]}  O-O-O {[%clk 0:02:57]} 15. Qd3 {[%clk 0:02:15]}  Na5 {[%clk 0:02:55]} 16. Qa6+ {[%clk 0:02:13]}  Kb8 {[%clk 0:02:55]} 17. Bb4 {[%clk 0:02:08]}  Nc4 {[%clk 0:02:49]} 18. a5 {[%clk 0:02:06]}  Qc6 {[%clk 0:02:14]} 19. axb6 {[%clk 0:02:03]}  axb6 {[%clk 0:02:15]} 20. Ng3 {[%clk 0:01:56]}  Nxg3 {[%clk 0:02:09]} 21. Rxg3 {[%clk 0:01:56]}  Rhg8 {[%clk 0:02:10]} 22. Rf3 {[%clk 0:01:55]}  Qb7 {[%clk 0:01:58]} 23. Rxf7 {[%clk 0:01:48]}  Qxa6 {[%clk 0:01:57]} 24. Rxa6 {[%clk 0:01:49]}  g6 {[%clk 0:01:53]} 25. hxg6 {[%clk 0:01:44]}  Rxg6 {[%clk 0:01:54]} 26. g3 {[%clk 0:01:44]}  Rh8 {[%clk 0:01:53]} 27. Ke2 {[%clk 0:01:31]}  h5 {[%clk 0:01:53]} 28. Ra1 {[%clk 0:01:31]}  h4 {[%clk 0:01:52]} 29. Rh1 {[%clk 0:01:24]}  h3 {[%clk 0:01:20]} 30. Rf8+ {[%clk 0:01:23]}  Rxf8 {[%clk 0:01:18]} 31. Bxf8 {[%clk 0:01:24]}  Rg8 {[%clk 0:01:15]} 32. Be7 {[%clk 0:01:22]}  Rh8 {[%clk 0:01:14]} 33. Bg5 {[%clk 0:01:15]}  Kc8 {[%clk 0:00:59]} 34. Kf3 {[%clk 0:01:15]}  Kd7 {[%clk 0:00:58]} 35. Kg4 {[%clk 0:01:15]}  h2 {[%clk 0:00:51]} 36. Kf3 {[%clk 0:01:08]}  Na3 {[%clk 0:00:51]} 37. Kg2 {[%clk 0:01:07]}  Nxc2 {[%clk 0:00:51]} 38. Rxh2 {[%clk 0:01:08]}  Rxh2+ {[%clk 0:00:47]} 39. Kxh2 {[%clk 0:01:09]}  c5 {[%clk 0:00:38]} 40. Be3 {[%clk 0:00:43]}  c4 {[%clk 0:00:32]} 41. Kg2 {[%clk 0:00:43]}  Na3 {[%clk 0:00:27]} 42. Bc1 {[%clk 0:00:36]}  Nb1 {[%clk 0:00:22]} 43. Bb2 {[%clk 0:00:36]}  b5 {[%clk 0:00:20]} 44. f4 {[%clk 0:00:36]}  Ke7 {[%clk 0:00:08]} 45. g4 {[%clk 0:00:35]}  Kf7 {[%clk 0:00:09]} 46. f5 {[%clk 0:00:36]}  b4 {[%clk 0:00:03]} 47. cxb4 {[%clk 0:00:36]}  c3 {[%clk 0:00:03]} 48. Bc1 {[%clk 0:00:36]}  Nd2 {[%clk 0:00:01]} 49. b5 {[%clk 0:00:33]}  Nc4 {[%clk 0:00:00]} 50. Kf3 {[%clk 0:00:30]} 1-0

[Event "December 5 Early 2023"]
[Site "https://www.chess.com"]
[Date "2023.12.05"]
[Round "8"]
[White "Bolat, Inayat"]
[Black "Janaszak, Dawid"]
[Result "0-1"]
[Board "82"]
[TimeControl "180+1"]
[WhiteFideId "13733125"]
[BlackFideId "1119206"]
[WhiteElo "2423"]
[BlackElo "2601"]
[WhiteTeam "KAZ"]
[BlackTeam "POL"]
[WhiteClock "0:00:00"]
[BlackClock "0:00:19"]

1. e4 {[%clk 0:03:00]}  c5 {[%clk 0:02:59]} 2. Nf3 {[%clk 0:03:00]}  b6 {[%clk 0:02:59]} 3. d4 {[%clk 0:02:58]}  cxd4 {[%clk 0:03:00]} 4. Nxd4 {[%clk 0:02:59]}  Bb7 {[%clk 0:03:01]} 5. Nc3 {[%clk 0:03:00]}  e6 {[%clk 0:02:57]} 6. Be3 {[%clk 0:02:56]}  Bb4 {[%clk 0:02:53]} 7. f3 {[%clk 0:02:49]}  Nf6 {[%clk 0:02:48]} 8. Bd3 {[%clk 0:02:42]}  O-O {[%clk 0:02:47]} 9. O-O {[%clk 0:02:42]}  d5 {[%clk 0:02:45]} 10. e5 {[%clk 0:02:41]}  Nfd7 {[%clk 0:02:44]} 11. f4 {[%clk 0:02:41]}  Nc6 {[%clk 0:02:42]} 12. Rf3 {[%clk 0:02:35]}  g6 {[%clk 0:02:21]} 13. Rg3 {[%clk 0:02:18]}  Nxd4 {[%clk 0:02:18]} 14. Bxd4 {[%clk 0:02:17]}  Bc5 {[%clk 0:02:19]} 15. Ne2 {[%clk 0:02:12]}  a5 {[%clk 0:02:11]} 16. f5 {[%clk 0:01:53]}  Nxe5 {[%clk 0:02:00]} 17. Bxc5 {[%clk 0:01:32]}  bxc5 {[%clk 0:01:57]} 18. Nf4 {[%clk 0:01:31]}  Nxd3 {[%clk 0:01:46]} 19. Qxd3 {[%clk 0:00:42]}  exf5 {[%clk 0:01:40]} 20. Qxf5 {[%clk 0:00:41]}  Qb6 {[%clk 0:01:17]} 21. b3 {[%clk 0:00:35]}  c4+ {[%clk 0:01:09]} 22. Kh1 {[%clk 0:00:34]}  Qf2 {[%clk 0:01:08]} 23. Qg5 {[%clk 0:00:15]}  cxb3 {[%clk 0:00:56]} 24. axb3 {[%clk 0:00:13]}  Rae8 {[%clk 0:00:56]} 25. h4 {[%clk 0:00:11]}  Re4 {[%clk 0:00:54]} 26. Nd3 {[%clk 0:00:04]}  Qxc2 {[%clk 0:00:47]} 27. Nf4 {[%clk 0:00:03]}  Qf2 {[%clk 0:00:39]} 28. Rf3 {[%clk 0:00:03]}  Qd4 {[%clk 0:00:38]} 29. Raf1 {[%clk 0:00:02]}  Qe5 {[%clk 0:00:38]} 30. Qg3 {[%clk 0:00:02]}  d4 {[%clk 0:00:36]} 31. Qg4 {[%clk 0:00:01]}  Bc8 {[%clk 0:00:35]} 32. Qg3 {[%clk 0:00:01]}  Bf5 {[%clk 0:00:36]} 33. Qf2 {[%clk 0:00:02]}  Re3 {[%clk 0:00:34]} 34. Nd3 {[%clk 0:00:01]}  Rxf3 {[%clk 0:00:26]} 35. Qxf3 {[%clk 0:00:01]}  Qe3 {[%clk 0:00:27]} 36. Qxe3 {[%clk 0:00:01]}  dxe3 {[%clk 0:00:28]} 37. Nf4 {[%clk 0:00:02]}  Rb8 {[%clk 0:00:25]} 38. Re1 {[%clk 0:00:01]}  Rxb3 {[%clk 0:00:26]} 39. Nd5 {[%clk 0:00:02]}  a4 {[%clk 0:00:23]} 40. Nxe3 {[%clk 0:00:02]}  Be6 {[%clk 0:00:22]} 41. Nc2 {[%clk 0:00:02]}  Rc3 {[%clk 0:00:21]} 42. Nb4 {[%clk 0:00:01]}  a3 {[%clk 0:00:21]} 43. Ra1 {[%clk 0:00:02]}  a2 {[%clk 0:00:20]} 44. Kh2 {[%clk 0:00:01]}  Rc4 {[%clk 0:00:19]} 45. Nd3 {[%clk 0:00:01]}  Rxh4+ {[%clk 0:00:20]} 46. Kg3 {[%clk 0:00:00]}  Rd4 {[%clk 0:00:19]} 0-1

[Event "December 5 Early 2023"]
[Site "https://www.chess.com"]
[Date "2023.12.05"]
[Round "8"]
[White "Navarrete Mendez, Gonzalo Alberto"]
[Black "Hoffmann, Asa"]
[Result "1-0"]
[Board "83"]
[TimeControl "180+1"]
[WhiteFideId "5106850"]
[BlackFideId "2001470"]
[WhiteElo "2599"]
[BlackElo "2415"]
[WhiteTeam "MEX"]
[BlackTeam "USA"]
[WhiteClock "0:00:56"]
[BlackClock "0:01:27"]

1. e4 {[%clk 0:03:00]}  d6 {[%clk 0:02:59]} 2. d4 {[%clk 0:02:59]}  Nf6 {[%clk 0:02:57]} 3. Nc3 {[%clk 0:02:59]}  c6 {[%clk 0:02:56]} 4. f4 {[%clk 0:02:57]}  Qa5 {[%clk 0:02:56]} 5. e5 {[%clk 0:02:57]}  Nd5 {[%clk 0:02:55]} 6. Nf3 {[%clk 0:02:51]}  Bg4 {[%clk 0:02:52]} 7. h3 {[%clk 0:02:47]}  Bxf3 {[%clk 0:02:51]} 8. Qxf3 {[%clk 0:02:48]}  e6 {[%clk 0:02:50]} 9. Bd2 {[%clk 0:02:43]}  Nxc3 {[%clk 0:02:50]} 10. bxc3 {[%clk 0:02:42]}  g6 {[%clk 0:02:41]} 11. Bd3 {[%clk 0:02:42]}  d5 {[%clk 0:02:40]} 12. O-O {[%clk 0:02:34]}  c5 {[%clk 0:02:40]} 13. Rab1 {[%clk 0:02:04]}  cxd4 {[%clk 0:02:17]} 14. f5 {[%clk 0:01:43]}  gxf5 {[%clk 0:02:03]} 15. Bxf5 {[%clk 0:01:37]}  Qc7 {[%clk 0:01:47]} 16. Bxe6 {[%clk 0:01:20]}  fxe6 {[%clk 0:01:45]} 17. Qh5+ {[%clk 0:01:20]}  Kd8 {[%clk 0:01:44]} 18. Bg5+ {[%clk 0:00:57]}  Kc8 {[%clk 0:01:27]} 19. Qe8+ {[%clk 0:00:56]} 1-0

[Event "December 5 Early 2023"]
[Site "https://www.chess.com"]
[Date "2023.12.05"]
[Round "8"]
[White "Toman, Ondrej"]
[Black "Tymrakiewicz, Rafal"]
[Result "1/2-1/2"]
[Board "84"]
[TimeControl "180+1"]
[WhiteFideId "344516"]
[BlackFideId "1108832"]
[WhiteElo "2597"]
[BlackElo "2422"]
[WhiteTeam "CZE"]
[BlackTeam "POL"]
[WhiteClock "0:00:09"]
[BlackClock "0:00:05"]

1. d4 {[%clk 0:03:00]}  d5 {[%clk 0:02:57]} 2. c4 {[%clk 0:03:00]}  c6 {[%clk 0:02:57]} 3. Nc3 {[%clk 0:02:59]}  Nf6 {[%clk 0:02:58]} 4. Nf3 {[%clk 0:02:58]}  a6 {[%clk 0:02:58]} 5. e3 {[%clk 0:02:49]}  Bg4 {[%clk 0:02:54]} 6. Be2 {[%clk 0:02:48]}  e6 {[%clk 0:02:53]} 7. b3 {[%clk 0:02:43]}  Nbd7 {[%clk 0:02:52]} 8. O-O {[%clk 0:02:42]}  Bd6 {[%clk 0:02:52]} 9. Qc2 {[%clk 0:02:36]}  O-O {[%clk 0:02:25]} 10. h3 {[%clk 0:02:34]}  Bh5 {[%clk 0:02:23]} 11. e4 {[%clk 0:02:33]}  dxe4 {[%clk 0:02:18]} 12. Nxe4 {[%clk 0:02:34]}  Nxe4 {[%clk 0:02:10]} 13. Qxe4 {[%clk 0:02:35]}  Bg6 {[%clk 0:02:09]} 14. Qe3 {[%clk 0:02:34]}  Re8 {[%clk 0:02:03]} 15. Bb2 {[%clk 0:02:28]}  Qa5 {[%clk 0:02:02]} 16. a3 {[%clk 0:02:19]}  e5 {[%clk 0:02:01]} 17. dxe5 {[%clk 0:02:10]}  Nxe5 {[%clk 0:01:56]} 18. b4 {[%clk 0:01:52]}  Qc7 {[%clk 0:01:47]} 19. c5 {[%clk 0:01:36]}  Nxf3+ {[%clk 0:01:44]} 20. Qxf3 {[%clk 0:01:36]}  Be5 {[%clk 0:01:43]} 21. Bxe5 {[%clk 0:01:33]}  Qxe5 {[%clk 0:01:13]} 22. Bc4 {[%clk 0:01:33]}  Qe4 {[%clk 0:01:08]} 23. Qc3 {[%clk 0:01:31]}  Qe5 {[%clk 0:01:07]} 24. Qxe5 {[%clk 0:01:23]}  Rxe5 {[%clk 0:01:07]} 25. Rfe1 {[%clk 0:01:23]}  Rxe1+ {[%clk 0:00:57]} 26. Rxe1 {[%clk 0:01:24]}  Kf8 {[%clk 0:00:57]} 27. f4 {[%clk 0:01:16]}  Rd8 {[%clk 0:00:56]} 28. g3 {[%clk 0:01:02]}  Rd4 {[%clk 0:00:50]} 29. Bf1 {[%clk 0:01:01]}  Be4 {[%clk 0:00:45]} 30. Kf2 {[%clk 0:00:57]}  f5 {[%clk 0:00:44]} 31. g4 {[%clk 0:00:54]}  g6 {[%clk 0:00:40]} 32. Be2 {[%clk 0:00:50]}  Rd2 {[%clk 0:00:37]} 33. Rd1 {[%clk 0:00:43]}  Rxd1 {[%clk 0:00:09]} 34. Bxd1 {[%clk 0:00:44]}  fxg4 {[%clk 0:00:09]} 35. Bxg4 {[%clk 0:00:42]}  Bf5 {[%clk 0:00:06]} 36. Kg3 {[%clk 0:00:35]}  Bxg4 {[%clk 0:00:06]} 37. Kxg4 {[%clk 0:00:27]}  Kg7 {[%clk 0:00:06]} 38. f5 {[%clk 0:00:24]}  Kf6 {[%clk 0:00:06]} 39. fxg6 {[%clk 0:00:24]}  Kxg6 {[%clk 0:00:06]} 40. Kf4 {[%clk 0:00:23]}  Kf6 {[%clk 0:00:06]} 41. Ke4 {[%clk 0:00:20]}  Ke6 {[%clk 0:00:06]} 42. Kf4 {[%clk 0:00:19]}  Kf6 {[%clk 0:00:06]} 43. Kg4 {[%clk 0:00:19]}  Kg6 {[%clk 0:00:07]} 44. h4 {[%clk 0:00:16]}  h6 {[%clk 0:00:04]} 45. Kf4 {[%clk 0:00:10]}  Kf6 {[%clk 0:00:05]} 46. Kg4 {[%clk 0:00:08]}  Kg6 {[%clk 0:00:04]} 47. Kf4 {[%clk 0:00:08]}  Kf6 {[%clk 0:00:05]} 48. Kg4 {[%clk 0:00:09]}  Kg6 {[%clk 0:00:05]} 1/2-1/2

[Event "December 5 Early 2023"]
[Site "https://www.chess.com"]
[Date "2023.12.05"]
[Round "8"]
[White "YurasovMat-2012"]
[Black "Lund, Gunnar"]
[Result "1-0"]
[Board "86"]
[TimeControl "180+1"]
[BlackFideId "1520814"]
[WhiteElo "2353"]
[BlackElo "2594"]
[BlackTeam "NOR"]
[WhiteClock "0:02:23"]
[BlackClock "0:00:46"]

1. e4 {[%clk 0:03:00]}  e6 {[%clk 0:02:55]} 2. d3 {[%clk 0:02:58]}  d5 {[%clk 0:02:55]} 3. Nd2 {[%clk 0:02:58]}  dxe4 {[%clk 0:02:48]} 4. dxe4 {[%clk 0:02:58]}  Nf6 {[%clk 0:02:47]} 5. g3 {[%clk 0:02:58]}  b6 {[%clk 0:02:46]} 6. Bg2 {[%clk 0:02:58]}  Bb7 {[%clk 0:02:47]} 7. Ne2 {[%clk 0:02:56]}  Be7 {[%clk 0:02:44]} 8. O-O {[%clk 0:02:57]}  Qc8 {[%clk 0:02:28]} 9. Re1 {[%clk 0:02:50]}  O-O {[%clk 0:02:28]} 10. Nf4 {[%clk 0:02:51]}  Rd8 {[%clk 0:02:08]} 11. b3 {[%clk 0:02:50]}  c5 {[%clk 0:02:08]} 12. Bb2 {[%clk 0:02:50]}  Nc6 {[%clk 0:02:08]} 13. e5 {[%clk 0:02:50]}  Nd5 {[%clk 0:02:02]} 14. Nxd5 {[%clk 0:02:49]}  exd5 {[%clk 0:02:02]} 15. e6 {[%clk 0:02:47]}  fxe6 {[%clk 0:02:01]} 16. Qg4 {[%clk 0:02:46]}  Bf8 {[%clk 0:01:47]} 17. Rxe6 {[%clk 0:02:40]}  Qd7 {[%clk 0:01:45]} 18. Rae1 {[%clk 0:02:39]}  Bc8 {[%clk 0:01:38]} 19. c4 {[%clk 0:02:30]}  Qf7 {[%clk 0:00:46]} 20. cxd5 {[%clk 0:02:25]}  Rxd5 {[%clk 0:00:46]} 21. Bxd5 {[%clk 0:02:23]} 1-0

[Event "December 5 Early 2023"]
[Site "https://www.chess.com"]
[Date "2023.12.05"]
[Round "8"]
[White "Starozhilov, Leonid"]
[Black "Ovezdurdyyeva, Jemal"]
[Result "1-0"]
[Board "87"]
[TimeControl "180+1"]
[WhiteFideId "14106752"]
[BlackFideId "14001888"]
[WhiteElo "2742"]
[BlackElo "2397"]
[WhiteTeam "UKR"]
[BlackTeam "TKM"]
[WhiteClock "0:01:30"]
[BlackClock "0:01:13"]

1. b3 {[%clk 0:02:55]}  Nf6 {[%clk 0:02:58]} 2. Bb2 {[%clk 0:02:55]}  e6 {[%clk 0:02:54]} 3. c4 {[%clk 0:02:56]}  b6 {[%clk 0:02:54]} 4. Nf3 {[%clk 0:02:56]}  Bb7 {[%clk 0:02:55]} 5. g3 {[%clk 0:02:56]}  c5 {[%clk 0:02:55]} 6. Bg2 {[%clk 0:02:56]}  Be7 {[%clk 0:02:55]} 7. O-O {[%clk 0:02:57]}  O-O {[%clk 0:02:55]} 8. d4 {[%clk 0:02:57]}  d5 {[%clk 0:02:52]} 9. cxd5 {[%clk 0:02:52]}  Nxd5 {[%clk 0:02:48]} 10. Nc3 {[%clk 0:02:40]}  Nxc3 {[%clk 0:02:45]} 11. Bxc3 {[%clk 0:02:38]}  Bf6 {[%clk 0:02:44]} 12. Rc1 {[%clk 0:02:30]}  Na6 {[%clk 0:02:40]} 13. dxc5 {[%clk 0:02:25]}  Bxc3 {[%clk 0:02:32]} 14. Rxc3 {[%clk 0:02:24]}  Nxc5 {[%clk 0:02:32]} 15. Qc2 {[%clk 0:02:22]}  Qf6 {[%clk 0:02:28]} 16. b4 {[%clk 0:02:13]}  Be4 {[%clk 0:02:25]} 17. Qc1 {[%clk 0:02:09]}  Na4 {[%clk 0:02:22]} 18. Rc7 {[%clk 0:02:07]}  b5 {[%clk 0:02:06]} 19. Qe3 {[%clk 0:02:01]}  Bd5 {[%clk 0:02:03]} 20. Rfc1 {[%clk 0:01:46]}  a6 {[%clk 0:01:53]} 21. Ne5 {[%clk 0:01:43]}  Bxg2 {[%clk 0:01:45]} 22. Kxg2 {[%clk 0:01:43]}  Qf5 {[%clk 0:01:24]} 23. g4 {[%clk 0:01:31]}  Qf6 {[%clk 0:01:15]} 24. Nd7 {[%clk 0:01:30]}  Qg5 {[%clk 0:01:13]} 25. Qxg5 {[%clk 0:01:30]} 1-0

[Event "December 5 Early 2023"]
[Site "https://www.chess.com"]
[Date "2023.12.05"]
[Round "8"]
[White "Sadubayev, Airat"]
[Black "Devaev, Alexander"]
[Result "0-1"]
[Board "88"]
[TimeControl "180+1"]
[WhiteFideId "13713264"]
[BlackFideId "4169395"]
[WhiteElo "2668"]
[BlackElo "2516"]
[WhiteTeam "KAZ"]
[BlackTeam "RUS"]
[WhiteClock "0:00:24"]
[BlackClock "0:00:35"]

1. d4 {[%clk 0:03:00]}  Nf6 {[%clk 0:02:00]} 2. c4 {[%clk 0:02:58]}  e6 {[%clk 0:02:00]} 3. Nf3 {[%clk 0:02:58]}  c5 {[%clk 0:01:59]} 4. d5 {[%clk 0:02:54]}  d6 {[%clk 0:01:57]} 5. Nc3 {[%clk 0:02:47]}  exd5 {[%clk 0:01:58]} 6. cxd5 {[%clk 0:02:47]}  g6 {[%clk 0:01:58]} 7. Nd2 {[%clk 0:02:44]}  Bg7 {[%clk 0:01:58]} 8. e4 {[%clk 0:02:44]}  O-O {[%clk 0:01:59]} 9. Be2 {[%clk 0:02:43]}  Na6 {[%clk 0:01:59]} 10. O-O {[%clk 0:02:43]}  Nc7 {[%clk 0:02:00]} 11. Re1 {[%clk 0:02:35]}  Rb8 {[%clk 0:02:00]} 12. a4 {[%clk 0:02:34]}  a6 {[%clk 0:02:01]} 13. a5 {[%clk 0:02:25]}  Bd7 {[%clk 0:01:58]} 14. Bf1 {[%clk 0:02:22]}  Nb5 {[%clk 0:01:57]} 15. Nc4 {[%clk 0:02:18]}  Nxc3 {[%clk 0:01:36]} 16. bxc3 {[%clk 0:02:19]}  Bb5 {[%clk 0:01:36]} 17. Bf4 {[%clk 0:02:05]}  Bxc4 {[%clk 0:01:20]} 18. Bxc4 {[%clk 0:02:06]}  Ne8 {[%clk 0:01:20]} 19. e5 {[%clk 0:01:59]}  dxe5 {[%clk 0:01:17]} 20. Bxe5 {[%clk 0:02:00]}  Bxe5 {[%clk 0:01:11]} 21. Rxe5 {[%clk 0:02:01]}  Nd6 {[%clk 0:01:12]} 22. Bd3 {[%clk 0:01:52]}  Qf6 {[%clk 0:01:11]} 23. Qe2 {[%clk 0:01:42]}  Rfe8 {[%clk 0:01:11]} 24. f4 {[%clk 0:01:35]}  Qxf4 {[%clk 0:01:07]} 25. Rxe8+ {[%clk 0:01:28]}  Rxe8 {[%clk 0:01:07]} 26. Qb2 {[%clk 0:01:26]}  Qe3+ {[%clk 0:01:02]} 27. Kh1 {[%clk 0:01:26]}  Qxd3 {[%clk 0:00:57]} 28. Qb6 {[%clk 0:01:23]}  Qxd5 {[%clk 0:00:49]} 29. h3 {[%clk 0:01:21]}  Qc6 {[%clk 0:00:46]} 30. Qb2 {[%clk 0:01:16]}  Ne4 {[%clk 0:00:45]} 31. Rd1 {[%clk 0:01:11]}  c4 {[%clk 0:00:44]} 32. Qc2 {[%clk 0:01:05]}  h5 {[%clk 0:00:43]} 33. Rd4 {[%clk 0:00:57]}  h4 {[%clk 0:00:41]} 34. Qc1 {[%clk 0:00:46]}  Ng3+ {[%clk 0:00:36]} 35. Kh2 {[%clk 0:00:45]}  Ne2 {[%clk 0:00:34]} 36. Qe1 {[%clk 0:00:24]}  Qc7+ {[%clk 0:00:35]} 0-1